Workbook

Sheet Accmove
O1: =COLUMN() -> 15 | P1: =COLUMN() -> 16 | Q1: =COLUMN() -> 17 | R1: =COLUMN() -> 18 | S1: =COLUMN() -> 19
A2: 0 | B2: الرصيد | H2: =SUBTOTAL(9,H$4:$H89369) -> 2690 | I2: =SUBTOTAL(9,$I$4:I89369) -> 2690 | J2: =H2-I2 -> 0 | L2: =SUBTOTAL(9,L4:L5) -> 0 | N2: =SUBTOTAL(9,N4:N5) -> 0
A3: م | B3: كود االحساب | C3: اسم الحساب | D3: رقم امر التوريد | E3: رقم الاذن | F3: يدوي | G3: تاريخ الحركة | H3: مدين | I3: دائن | J3: الرصيد | L3: ض مبيعات | N3: ض ا ت ص | O3: التصنيف | P3: نوع الحركة | Q3: group | R3: الاذن مسلسل | S3: البيان | T3: الشهر
A4: =IF((A3)<>"م",(A3)+1,1) -> 1 | B4: 2 | C4: مصطفى محمد سعد | G4: 2022-01-01 | J4: =SUMIFS(H$4:H4,B$4:B4,B4)-SUMIFS(I$4:I4,B$4:B4,B4) -> 0 | P4: انشاء حساب | Q4: =CHOOSE(T4,"يناير","فبراير","مارس","ابريل","مايو","يونيو","يوليو","اغسطس","سبتمبر","اكتوبر","نوفمبر","ديسمبر") -> يناير | T4: 1
A5: 2 | B5: 3 | C5: احمد عبد الستار | G5: 2022-01-01 | J5: =SUMIFS(H$4:H5,B$4:B5,B5)-SUMIFS(I$4:I5,B$4:B5,B5) -> 0 | P5: انشاء حساب | Q5: =CHOOSE(T5,"يناير","فبراير","مارس","ابريل","مايو","يونيو","يوليو","اغسطس","سبتمبر","اكتوبر","نوفمبر","ديسمبر") -> يناير | T5: 1
A6: 3 | B6: 4 | C6: محمود انيس | G6: 2022-01-01 | J6: =SUMIFS(H$4:H6,B$4:B6,B6)-SUMIFS(I$4:I6,B$4:B6,B6) -> 0 | P6: انشاء حساب | Q6: يناير | T6: 1
A7: 4 | B7: 5 | C7: محمود سعد | G7: 2022-01-01 | J7: =SUMIFS(H$4:H7,B$4:B7,B7)-SUMIFS(I$4:I7,B$4:B7,B7) -> 0 | P7: انشاء حساب | Q7: يناير | T7: 1
A8: 5 | B8: 6 | C8: شيماء يوسف | G8: 2022-01-01 | J8: =SUMIFS(H$4:H8,B$4:B8,B8)-SUMIFS(I$4:I8,B$4:B8,B8) -> 0 | P8: انشاء حساب | Q8: يناير | T8: 1
A9: 6 | B9: 7 | C9: سناء- عبد القادر | G9: 2022-01-01 | J9: =SUMIFS(H$4:H9,B$4:B9,B9)-SUMIFS(I$4:I9,B$4:B9,B9) -> 0 | P9: انشاء حساب | Q9: فبراير | T9: 2
A10: 7 | B10: 8 | C10: عبده عباس ابو السعود | G10: 2022-01-01 | J10: =SUMIFS(H$4:H10,B$4:B10,B10)-SUMIFS(I$4:I10,B$4:B10,B10) -> 0 | P10: انشاء حساب | Q10: فبراير | T10: 2
A11: 8 | B11: 9 | C11: فريد الحسينى الشبراوى | G11: 2022-01-01 | J11: =SUMIFS(H$4:H11,B$4:B11,B11)-SUMIFS(I$4:I11,B$4:B11,B11) -> 0 | P11: انشاء حساب | Q11: فبراير | T11: 2
A12: 9 | B12: 10 | C12: يحيى العجمى | G12: 2022-01-01 | J12: =SUMIFS(H$4:H12,B$4:B12,B12)-SUMIFS(I$4:I12,B$4:B12,B12) -> 0 | P12: انشاء حساب | Q12: فبراير | T12: 2
A13: 10 | B13: 11 | C13: ابراهيم محمد ابراهيم | G13: 2022-01-01 | J13: =SUMIFS(H$4:H13,B$4:B13,B13)-SUMIFS(I$4:I13,B$4:B13,B13) -> 0 | P13: انشاء حساب | Q13: فبراير | T13: 2
A14: 11 | B14: 12 | C14: عبد العزيز بشير | G14: 2022-01-01 | J14: =SUMIFS(H$4:H14,B$4:B14,B14)-SUMIFS(I$4:I14,B$4:B14,B14) -> 0 | P14: انشاء حساب | Q14: فبراير | T14: 2
A15: 12 | B15: 13 | C15: محمود محمد الشيخ | G15: 2022-01-01 | J15: =SUMIFS(H$4:H15,B$4:B15,B15)-SUMIFS(I$4:I15,B$4:B15,B15) -> 0 | P15: انشاء حساب | Q15: مارس | T15: 3
A16: 13 | B16: 14 | C16: احمد محمد احمد متولى | G16: 2022-01-01 | J16: =SUMIFS(H$4:H16,B$4:B16,B16)-SUMIFS(I$4:I16,B$4:B16,B16) -> 0 | P16: انشاء حساب | Q16: مارس | T16: 3
A17: 14 | B17: 15 | C17: اسلام اجمد زكى | G17: 2022-01-01 | J17: =SUMIFS(H$4:H17,B$4:B17,B17)-SUMIFS(I$4:I17,B$4:B17,B17) -> 0 | P17: انشاء حساب | Q17: مارس | T17: 3
A18: 15 | B18: 16 | C18: محمد سيد محمود | G18: 2022-01-01 | J18: =SUMIFS(H$4:H18,B$4:B18,B18)-SUMIFS(I$4:I18,B$4:B18,B18) -> 0 | P18: انشاء حساب | Q18: مارس | T18: 3
A19: 16 | B19: 17 | C19: يونس ابو عمار | G19: 2022-01-01 | J19: =SUMIFS(H$4:H19,B$4:B19,B19)-SUMIFS(I$4:I19,B$4:B19,B19) -> 0 | P19: انشاء حساب | Q19: مارس | T19: 3
A20: 17 | B20: 18 | C20: محمد طه الصنانى | G20: 2022-01-01 | J20: =SUMIFS(H$4:H20,B$4:B20,B20)-SUMIFS(I$4:I20,B$4:B20,B20) -> 0 | P20: انشاء حساب | Q20: مارس | T20: 3
A21: 18 | B21: 19 | C21: هانى حسين | G21: 2022-01-01 | J21: =SUMIFS(H$4:H21,B$4:B21,B21)-SUMIFS(I$4:I21,B$4:B21,B21) -> 0 | P21: انشاء حساب | Q21: ابريل | T21: 4
A22: 19 | B22: 20 | C22: محمود رائد الاردنى | G22: 2022-01-01 | J22: =SUMIFS(H$4:H22,B$4:B22,B22)-SUMIFS(I$4:I22,B$4:B22,B22) -> 0 | P22: انشاء حساب | Q22: ابريل | T22: 4
A23: 20 | B23: 21 | C23: ابراهيم رمضان ابو العنبن | G23: 2022-01-01 | J23: =SUMIFS(H$4:H23,B$4:B23,B23)-SUMIFS(I$4:I23,B$4:B23,B23) -> 0 | P23: انشاء حساب | Q23: ابريل | T23: 4
A24: 21 | B24: 22 | C24: ياسر الكفراوى | G24: 2022-01-01 | J24: =SUMIFS(H$4:H24,B$4:B24,B24)-SUMIFS(I$4:I24,B$4:B24,B24) -> 0 | P24: انشاء حساب | Q24: مايو | T24: 5
A25: 22 | B25: 23 | C25: عبد الرحمن جمال | G25: 2022-01-01 | J25: =SUMIFS(H$4:H25,B$4:B25,B25)-SUMIFS(I$4:I25,B$4:B25,B25) -> 0 | P25: انشاء حساب | Q25: مايو | T25: 5
A26: 23 | B26: 24 | C26: test1 | G26: 2022-01-01 | J26: =SUMIFS(H$4:H26,B$4:B26,B26)-SUMIFS(I$4:I26,B$4:B26,B26) -> 0 | P26: انشاء حساب | Q26: مايو | T26: 5
A27: 24 | B27: =VLOOKUP(Accmove!C27,[1]acc!C:K,9,FALSE) -> 2 | C27: مصطفى محمد سعد | E27: 1 | G27: 2022-06-25 | H27: 1200 | J27: =SUMIFS(H$4:H27,B$4:B27,B27)-SUMIFS(I$4:I27,B$4:B27,B27) -> 1200 | O27: =VLOOKUP(B27,[1]acc!B:I,8,FALSE) -> cust | P27: بيع اجل | Q27: يونيو | T27: =IF(ISBLANK(G27),0,MONTH(G27)) -> 6
A28: 25 | B28: 1 | C28: test1 | E28: 1 | G28: 2022-06-25 | I28: 1200 | J28: =SUMIFS(H$4:H28,B$4:B28,B28)-SUMIFS(I$4:I28,B$4:B28,B28) -> -1200 | O28: =VLOOKUP(B28,[1]acc!B:I,8,FALSE) -> صندوق | P28: بيع اجل | Q28: يونيو | T28: 6
A29: 26 | B29: =VLOOKUP(Accmove!C29,[1]acc!C:K,9,FALSE) -> 2 | C29: مصطفى محمد سعد | E29: 1 | G29: 24/6/2022 | I29: 120 | J29: =SUMIFS(H$4:H29,B$4:B29,B29)-SUMIFS(I$4:I29,B$4:B29,B29) -> 1080 | O29: =VLOOKUP(B29,[1]acc!B:I,8,FALSE) -> cust | P29: سداد دفعة | Q29: يونيو | T29: 6
A30: 27 | B30: =VLOOKUP(Accmove!C30,[1]acc!C:K,9,FALSE) -> 1 | C30: ح/صندوق الاقساط | E30: 1 | G30: 24/6/2022 | H30: 120 | J30: =SUMIFS(H$4:H30,B$4:B30,B30)-SUMIFS(I$4:I30,B$4:B30,B30) -> -1080 | O30: =VLOOKUP(B30,[1]acc!B:I,8,FALSE) -> صندوق | P30: استلام قسط | Q30: يونيو | T30: 6
A31: 28 | B31: =VLOOKUP(Accmove!C31,[1]acc!C:K,9,FALSE) -> 2 | C31: مصطفى محمد سعد | E31: 1 | G31: 2022-07-05 | I31: 120 | J31: =SUMIFS(H$4:H31,B$4:B31,B31)-SUMIFS(I$4:I31,B$4:B31,B31) -> 960 | O31: =VLOOKUP(B31,[1]acc!B:I,8,FALSE) -> cust | P31: سداد دفعة | Q31: يوليو | T31: 7
A32: 29 | B32: =VLOOKUP(Accmove!C32,[1]acc!C:K,9,FALSE) -> 1 | C32: ح/صندوق الاقساط | E32: 1 | G32: 2022-07-05 | H32: 120 | J32: =SUMIFS(H$4:H32,B$4:B32,B32)-SUMIFS(I$4:I32,B$4:B32,B32) -> -960 | O32: =VLOOKUP(B32,[1]acc!B:I,8,FALSE) -> صندوق | P32: استلام قسط | Q32: يوليو | T32: 7
A33: 30 | B33: =VLOOKUP(Accmove!C33,[1]acc!C:K,9,FALSE) -> 2 | C33: مصطفى محمد سعد | E33: 5 | G33: 2022-07-05 | I33: 160 | J33: =SUMIFS(H$4:H33,B$4:B33,B33)-SUMIFS(I$4:I33,B$4:B33,B33) -> 800 | O33: =VLOOKUP(B33,[1]acc!B:I,8,FALSE) -> cust | P33: سداد دفعة | Q33: يوليو | T33: 7
A34: 31 | B34: =VLOOKUP(Accmove!C34,[1]acc!C:K,9,FALSE) -> 1 | C34: ح/صندوق الاقساط | E34: 5 | G34: 2022-07-05 | H34: 160 | J34: =SUMIFS(H$4:H34,B$4:B34,B34)-SUMIFS(I$4:I34,B$4:B34,B34) -> -800 | O34: =VLOOKUP(B34,[1]acc!B:I,8,FALSE) -> صندوق | P34: استلام قسط | Q34: يوليو | T34: 7
A35: 32 | B35: =VLOOKUP(Accmove!C35,[1]acc!C:K,9,FALSE) -> 2 | C35: مصطفى محمد سعد | G35: 2022-07-05 | I35: 170 | J35: =SUMIFS(H$4:H35,B$4:B35,B35)-SUMIFS(I$4:I35,B$4:B35,B35) -> 630 | O35: =VLOOKUP(B35,[1]acc!B:I,8,FALSE) -> cust | P35: سداد دفعة | Q35: يوليو | T35: 7
A36: 33 | B36: =VLOOKUP(Accmove!C36,[1]acc!C:K,9,FALSE) -> 1 | C36: ح/صندوق الاقساط | G36: 2022-07-05 | H36: 170 | J36: =SUMIFS(H$4:H36,B$4:B36,B36)-SUMIFS(I$4:I36,B$4:B36,B36) -> -630 | O36: =VLOOKUP(B36,[1]acc!B:I,8,FALSE) -> صندوق | P36: استلام قسط | Q36: يوليو | T36: 7
A37: 34 | B37: =VLOOKUP(Accmove!C37,[1]acc!C:K,9,FALSE) -> 2 | C37: مصطفى محمد سعد | E37: 7 | G37: 2022-07-05 | I37: 200 | J37: =SUMIFS(H$4:H37,B$4:B37,B37)-SUMIFS(I$4:I37,B$4:B37,B37) -> 430 | O37: =VLOOKUP(B37,[1]acc!B:I,8,FALSE) -> cust | P37: سداد دفعة | Q37: يوليو | T37: 7
A38: 35 | B38: =VLOOKUP(Accmove!C38,[1]acc!C:K,9,FALSE) -> 1 | C38: ح/صندوق الاقساط | E38: 7 | G38: 2022-07-05 | H38: 200 | J38: =SUMIFS(H$4:H38,B$4:B38,B38)-SUMIFS(I$4:I38,B$4:B38,B38) -> -430 | O38: =VLOOKUP(B38,[1]acc!B:I,8,FALSE) -> صندوق | P38: استلام قسط | Q38: يوليو | T38: 7
A39: =IF((A38)<>"م",(A38)+1,1) -> 36 | B39: =VLOOKUP(Accmove!C39,[1]acc!C:K,9,FALSE) -> 24 | C39: test1 | E39: 8 | G39: 2022-07-05 | H39: 700 | J39: =SUMIFS(H$4:H39,B$4:B39,B39)-SUMIFS(I$4:I39,B$4:B39,B39) -> 700 | O39: =VLOOKUP(B39,[1]acc!B:I,8,FALSE) -> fina | P39: سداد للممول | Q39: يوليو | T39: 7
A40: =IF((A39)<>"م",(A39)+1,1) -> 37 | B40: =VLOOKUP(Accmove!C40,[1]acc!C:K,9,FALSE) -> 1 | C40: ح/صندوق الاقساط | E40: 8 | G40: 2022-07-05 | I40: 700 | J40: =SUMIFS(H$4:H40,B$4:B40,B40)-SUMIFS(I$4:I40,B$4:B40,B40) -> -1130 | O40: =VLOOKUP(B40,[1]acc!B:I,8,FALSE) -> صندوق | P40: سداد للممول | Q40: يوليو | T40: 7
A41: =IF((A40)<>"م",(A40)+1,1) -> 38 | B41: 25 | C41: test me | G41: 2022-07-18 | J41: =SUMIFS(H$4:H41,B$4:B41,B41)-SUMIFS(I$4:I41,B$4:B41,B41) -> 0 | P41: رصيد افتتاحي | Q41: يوليو | T41: =IF(ISBLANK(G41),0,MONTH(G41)) -> 7
A42: =IF((A41)<>"م",(A41)+1,1) -> 39 | B42: 24 | C42: test me | E42: 2 | G42: 2022-07-18 | H42: 20 | J42: =SUMIFS(H$4:H42,B$4:B42,B42)-SUMIFS(I$4:I42,B$4:B42,B42) -> 720 | O42: cust | P42: بيع اجل | Q42: يوليو | T42: =IF(ISBLANK(G42),0,MONTH(G42)) -> 7 | U42: test1
A43: =IF((A42)<>"م",(A42)+1,1) -> 40 | B43: 2 | C43: test1 | E43: 2 | G43: 2022-07-18 | I43: 20 | J43: =SUMIFS(H$4:H43,B$4:B43,B43)-SUMIFS(I$4:I43,B$4:B43,B43) -> 410 | O43: fina | P43: بيع اجل | Q43: يوليو | T43: =IF(ISBLANK(G43),0,MONTH(G43)) -> 7

Sheet يونيو
J1: يونيو | K1: 2022 | L1: 6
E2: =IFERROR(SUBTOTAL(9,E5:E20000),0) -> 240 | H2: =IFERROR(SUBTOTAL(9,H5:H20000),0) -> 0 | I2: 0 | J2: 2160 | K2: 2160 | L2: 2160 | M2: 2160
A3: م | B3: كود العميل | D3: التاريخ | E3: القسط | F3: الوكيل | G3: عميل فرعى | H3: رصيداول المده | J3: حركة | K3: =J1 -> يونيو | L3: الاجمالى
H4: مدين | I4: دائن | J4: مدين | K4: دائن | L4: مدين | M4: دائن
A5: =IF((A4)<>"م",(A4)+1,1) -> 1 | B5: 2 | C5: مصطفى محمد سعد | D5: 2022-06-25 | E5: =IFERROR(VLOOKUP(C5,[1]credit!D:N,10,FALSE),0) -> 120 | F5: =IFERROR(VLOOKUP(C5,[1]credit!D:N,3,FALSE),0) -> test1 | G5: =IFERROR(VLOOKUP(C5,[1]credit!D:N,2,FALSE),0) -> احمد محمد سعد | H5: =IF(SUMIFS(Accmove!H:H,Accmove!B:B,B5,Accmove!T:T,"<"&L$1)-SUMIFS(Accmove!I:I,Accmove!B:B,B5,Accmove!T:T,"<"&L$1)>0,SUMIFS(Accmove!H:H,Accmove!B:B,B5,Accmove!T:T,"<"&L$1)-SUMIFS(Accmove!I:I,Accmove!B:B,B5,Accmove!T:T,"<"&L$1),0) -> 0 | I5: =IF(SUMIFS(Accmove!H:H,Accmove!B:B,B5,Accmove!T:T,"<"&L$1)-SUMIFS(Accmove!I:I,Accmove!B:B,B5,Accmove!T:T,"<"&L$1)<0,SUMIFS(Accmove!H:H,Accmove!B:B,B5,Accmove!T:T,"<"&L$1)-SUMIFS(Accmove!I:I,Accmove!B:B,B5,Accmove!T:T,"<"&L$1),0)*-1 -> 0 | J5: =IF(SUMIFS(Accmove!H:H,Accmove!B:B,B5,Accmove!Q:Q,J$1)-SUMIFS(Accmove!I:I,Accmove!B:B,B5,Accmove!Q:Q,J$1)>0,SUMIFS(Accmove!H:H,Accmove!B:B,B5,Accmove!Q:Q,J$1)-SUMIFS(Accmove!I:I,Accmove!B:B,B5,Accmove!Q:Q,J$1),0) -> 1080 | K5: =IF(SUMIFS(Accmove!H:H,Accmove!B:B,B5,Accmove!Q:Q,J$1)-SUMIFS(Accmove!I:I,Accmove!B:B,B5,Accmove!Q:Q,J$1)<0,SUMIFS(Accmove!H:H,Accmove!B:B,B5,Accmove!Q:Q,J$1)-SUMIFS(Accmove!I:I,Accmove!B:B,B5,Accmove!Q:Q,J$1),0)*-1 -> 0 | L5: =IF(H5-I5+J5-K5>0,H5-I5+J5-K5,0) -> 1080 | M5: =IF(H5-I5+J5-K5<0,H5-I5+J5-K5,0)*-1 -> 0
A6: =IF((A5)<>"م",(A5)+1,1) -> 2 | B6: 1 | C6: test1 | D6: 2022-06-25 | E6: =IFERROR(VLOOKUP(C6,[1]credit!D:N,10,FALSE),0) -> 0 | F6: =IFERROR(VLOOKUP(C6,[1]credit!D:N,3,FALSE),0) -> 0 | G6: =IFERROR(VLOOKUP(C6,[1]credit!D:N,2,FALSE),0) -> 0 | H6: =IF(SUMIFS(Accmove!H:H,Accmove!B:B,B6,Accmove!T:T,"<"&L$1)-SUMIFS(Accmove!I:I,Accmove!B:B,B6,Accmove!T:T,"<"&L$1)>0,SUMIFS(Accmove!H:H,Accmove!B:B,B6,Accmove!T:T,"<"&L$1)-SUMIFS(Accmove!I:I,Accmove!B:B,B6,Accmove!T:T,"<"&L$1),0) -> 0 | I6: =IF(SUMIFS(Accmove!H:H,Accmove!B:B,B6,Accmove!T:T,"<"&L$1)-SUMIFS(Accmove!I:I,Accmove!B:B,B6,Accmove!T:T,"<"&L$1)<0,SUMIFS(Accmove!H:H,Accmove!B:B,B6,Accmove!T:T,"<"&L$1)-SUMIFS(Accmove!I:I,Accmove!B:B,B6,Accmove!T:T,"<"&L$1),0)*-1 -> 0 | J6: =IF(SUMIFS(Accmove!H:H,Accmove!B:B,B6,Accmove!Q:Q,J$1)-SUMIFS(Accmove!I:I,Accmove!B:B,B6,Accmove!Q:Q,J$1)>0,SUMIFS(Accmove!H:H,Accmove!B:B,B6,Accmove!Q:Q,J$1)-SUMIFS(Accmove!I:I,Accmove!B:B,B6,Accmove!Q:Q,J$1),0) -> 0 | K6: =IF(SUMIFS(Accmove!H:H,Accmove!B:B,B6,Accmove!Q:Q,J$1)-SUMIFS(Accmove!I:I,Accmove!B:B,B6,Accmove!Q:Q,J$1)<0,SUMIFS(Accmove!H:H,Accmove!B:B,B6,Accmove!Q:Q,J$1)-SUMIFS(Accmove!I:I,Accmove!B:B,B6,Accmove!Q:Q,J$1),0)*-1 -> 1080 | L6: =IF(H6-I6+J6-K6>0,H6-I6+J6-K6,0) -> 0 | M6: =IF(H6-I6+J6-K6<0,H6-I6+J6-K6,0)*-1 -> 1080
A7: =IF((A6)<>"م",(A6)+1,1) -> 3 | B7: 2 | C7: مصطفى محمد سعد | D7: 24/6/2022 | E7: =IFERROR(VLOOKUP(C7,[1]credit!D:N,10,FALSE),0) -> 120 | F7: =IFERROR(VLOOKUP(C7,[1]credit!D:N,3,FALSE),0) -> test1 | G7: =IFERROR(VLOOKUP(C7,[1]credit!D:N,2,FALSE),0) -> احمد محمد سعد | H7: =IF(SUMIFS(Accmove!H:H,Accmove!B:B,B7,Accmove!T:T,"<"&L$1)-SUMIFS(Accmove!I:I,Accmove!B:B,B7,Accmove!T:T,"<"&L$1)>0,SUMIFS(Accmove!H:H,Accmove!B:B,B7,Accmove!T:T,"<"&L$1)-SUMIFS(Accmove!I:I,Accmove!B:B,B7,Accmove!T:T,"<"&L$1),0) -> 0 | I7: =IF(SUMIFS(Accmove!H:H,Accmove!B:B,B7,Accmove!T:T,"<"&L$1)-SUMIFS(Accmove!I:I,Accmove!B:B,B7,Accmove!T:T,"<"&L$1)<0,SUMIFS(Accmove!H:H,Accmove!B:B,B7,Accmove!T:T,"<"&L$1)-SUMIFS(Accmove!I:I,Accmove!B:B,B7,Accmove!T:T,"<"&L$1),0)*-1 -> 0 | J7: =IF(SUMIFS(Accmove!H:H,Accmove!B:B,B7,Accmove!Q:Q,J$1)-SUMIFS(Accmove!I:I,Accmove!B:B,B7,Accmove!Q:Q,J$1)>0,SUMIFS(Accmove!H:H,Accmove!B:B,B7,Accmove!Q:Q,J$1)-SUMIFS(Accmove!I:I,Accmove!B:B,B7,Accmove!Q:Q,J$1),0) -> 1080 | K7: =IF(SUMIFS(Accmove!H:H,Accmove!B:B,B7,Accmove!Q:Q,J$1)-SUMIFS(Accmove!I:I,Accmove!B:B,B7,Accmove!Q:Q,J$1)<0,SUMIFS(Accmove!H:H,Accmove!B:B,B7,Accmove!Q:Q,J$1)-SUMIFS(Accmove!I:I,Accmove!B:B,B7,Accmove!Q:Q,J$1),0)*-1 -> 0 | L7: =IF(H7-I7+J7-K7>0,H7-I7+J7-K7,0) -> 1080 | M7: =IF(H7-I7+J7-K7<0,H7-I7+J7-K7,0)*-1 -> 0
A8: =IF((A7)<>"م",(A7)+1,1) -> 4 | B8: 1 | C8: ح/صندوق الاقساط | D8: 24/6/2022 | E8: =IFERROR(VLOOKUP(C8,[1]credit!D:N,10,FALSE),0) -> 0 | F8: =IFERROR(VLOOKUP(C8,[1]credit!D:N,3,FALSE),0) -> 0 | G8: =IFERROR(VLOOKUP(C8,[1]credit!D:N,2,FALSE),0) -> 0 | H8: =IF(SUMIFS(Accmove!H:H,Accmove!B:B,B8,Accmove!T:T,"<"&L$1)-SUMIFS(Accmove!I:I,Accmove!B:B,B8,Accmove!T:T,"<"&L$1)>0,SUMIFS(Accmove!H:H,Accmove!B:B,B8,Accmove!T:T,"<"&L$1)-SUMIFS(Accmove!I:I,Accmove!B:B,B8,Accmove!T:T,"<"&L$1),0) -> 0 | I8: =IF(SUMIFS(Accmove!H:H,Accmove!B:B,B8,Accmove!T:T,"<"&L$1)-SUMIFS(Accmove!I:I,Accmove!B:B,B8,Accmove!T:T,"<"&L$1)<0,SUMIFS(Accmove!H:H,Accmove!B:B,B8,Accmove!T:T,"<"&L$1)-SUMIFS(Accmove!I:I,Accmove!B:B,B8,Accmove!T:T,"<"&L$1),0)*-1 -> 0 | J8: =IF(SUMIFS(Accmove!H:H,Accmove!B:B,B8,Accmove!Q:Q,J$1)-SUMIFS(Accmove!I:I,Accmove!B:B,B8,Accmove!Q:Q,J$1)>0,SUMIFS(Accmove!H:H,Accmove!B:B,B8,Accmove!Q:Q,J$1)-SUMIFS(Accmove!I:I,Accmove!B:B,B8,Accmove!Q:Q,J$1),0) -> 0 | K8: =IF(SUMIFS(Accmove!H:H,Accmove!B:B,B8,Accmove!Q:Q,J$1)-SUMIFS(Accmove!I:I,Accmove!B:B,B8,Accmove!Q:Q,J$1)<0,SUMIFS(Accmove!H:H,Accmove!B:B,B8,Accmove!Q:Q,J$1)-SUMIFS(Accmove!I:I,Accmove!B:B,B8,Accmove!Q:Q,J$1),0)*-1 -> 1080 | L8: =IF(H8-I8+J8-K8>0,H8-I8+J8-K8,0) -> 0 | M8: =IF(H8-I8+J8-K8<0,H8-I8+J8-K8,0)*-1 -> 1080

Sheet يوليو
A1: 7 | J1: يوليو | K1: 2022 | L1: 7
E2: =IFERROR(SUBTOTAL(9,E5:E20000),0) -> 484 | H2: =IFERROR(SUBTOTAL(9,H5:H20000),0) -> 5400 | I2: 5400 | J2: 1440 | K2: 3600 | L2: 3490 | M2: 5650
A3: م | B3: كود العميل | D3: التاريخ | E3: القسط | F3: الوكيل | G3: عميل فرعى | H3: رصيداول المده | J3: حركة | K3: =J1 -> يوليو | L3: الاجمالى
H4: مدين | I4: دائن | J4: مدين | K4: دائن | L4: مدين | M4: دائن
A5: =IF((A4)<>"م",(A4)+1,1) -> 1 | B5: 2 | C5: مصطفى محمد سعد | D5: 2022-07-05 | E5: =IFERROR(VLOOKUP(C5,[1]credit!D:N,10,FALSE),0) -> 120 | F5: =IFERROR(VLOOKUP(C5,[1]credit!D:N,3,FALSE),0) -> test1 | G5: =IFERROR(VLOOKUP(C5,[1]credit!D:N,2,FALSE),0) -> احمد محمد سعد | H5: =IF(SUMIFS(Accmove!H:H,Accmove!B:B,B5,Accmove!T:T,"<"&L$1)-SUMIFS(Accmove!I:I,Accmove!B:B,B5,Accmove!T:T,"<"&L$1)>0,SUMIFS(Accmove!H:H,Accmove!B:B,B5,Accmove!T:T,"<"&L$1)-SUMIFS(Accmove!I:I,Accmove!B:B,B5,Accmove!T:T,"<"&L$1),0) -> 1080 | I5: =IF(SUMIFS(Accmove!H:H,Accmove!B:B,B5,Accmove!T:T,"<"&L$1)-SUMIFS(Accmove!I:I,Accmove!B:B,B5,Accmove!T:T,"<"&L$1)<0,SUMIFS(Accmove!H:H,Accmove!B:B,B5,Accmove!T:T,"<"&L$1)-SUMIFS(Accmove!I:I,Accmove!B:B,B5,Accmove!T:T,"<"&L$1),0)*-1 -> 0 | J5: =IF(SUMIFS(Accmove!H:H,Accmove!B:B,B5,Accmove!Q:Q,J$1)-SUMIFS(Accmove!I:I,Accmove!B:B,B5,Accmove!Q:Q,J$1)>0,SUMIFS(Accmove!H:H,Accmove!B:B,B5,Accmove!Q:Q,J$1)-SUMIFS(Accmove!I:I,Accmove!B:B,B5,Accmove!Q:Q,J$1),0) -> 0 | K5: =IF(SUMIFS(Accmove!H:H,Accmove!B:B,B5,Accmove!Q:Q,J$1)-SUMIFS(Accmove!I:I,Accmove!B:B,B5,Accmove!Q:Q,J$1)<0,SUMIFS(Accmove!H:H,Accmove!B:B,B5,Accmove!Q:Q,J$1)-SUMIFS(Accmove!I:I,Accmove!B:B,B5,Accmove!Q:Q,J$1),0)*-1 -> 670 | L5: =IF(H5-I5+J5-K5>0,H5-I5+J5-K5,0) -> 410 | M5: =IF(H5-I5+J5-K5<0,H5-I5+J5-K5,0)*-1 -> 0
A6: =IF((A5)<>"م",(A5)+1,1) -> 2 | B6: 1 | C6: ح/صندوق الاقساط | D6: 2022-07-05 | E6: =IFERROR(VLOOKUP(C6,[1]credit!D:N,10,FALSE),0) -> 0 | F6: =IFERROR(VLOOKUP(C6,[1]credit!D:N,3,FALSE),0) -> 0 | G6: =IFERROR(VLOOKUP(C6,[1]credit!D:N,2,FALSE),0) -> 0 | H6: =IF(SUMIFS(Accmove!H:H,Accmove!B:B,B6,Accmove!T:T,"<"&L$1)-SUMIFS(Accmove!I:I,Accmove!B:B,B6,Accmove!T:T,"<"&L$1)>0,SUMIFS(Accmove!H:H,Accmove!B:B,B6,Accmove!T:T,"<"&L$1)-SUMIFS(Accmove!I:I,Accmove!B:B,B6,Accmove!T:T,"<"&L$1),0) -> 0 | I6: =IF(SUMIFS(Accmove!H:H,Accmove!B:B,B6,Accmove!T:T,"<"&L$1)-SUMIFS(Accmove!I:I,Accmove!B:B,B6,Accmove!T:T,"<"&L$1)<0,SUMIFS(Accmove!H:H,Accmove!B:B,B6,Accmove!T:T,"<"&L$1)-SUMIFS(Accmove!I:I,Accmove!B:B,B6,Accmove!T:T,"<"&L$1),0)*-1 -> 1080 | J6: =IF(SUMIFS(Accmove!H:H,Accmove!B:B,B6,Accmove!Q:Q,J$1)-SUMIFS(Accmove!I:I,Accmove!B:B,B6,Accmove!Q:Q,J$1)>0,SUMIFS(Accmove!H:H,Accmove!B:B,B6,Accmove!Q:Q,J$1)-SUMIFS(Accmove!I:I,Accmove!B:B,B6,Accmove!Q:Q,J$1),0) -> 0 | K6: =IF(SUMIFS(Accmove!H:H,Accmove!B:B,B6,Accmove!Q:Q,J$1)-SUMIFS(Accmove!I:I,Accmove!B:B,B6,Accmove!Q:Q,J$1)<0,SUMIFS(Accmove!H:H,Accmove!B:B,B6,Accmove!Q:Q,J$1)-SUMIFS(Accmove!I:I,Accmove!B:B,B6,Accmove!Q:Q,J$1),0)*-1 -> 50 | L6: =IF(H6-I6+J6-K6>0,H6-I6+J6-K6,0) -> 0 | M6: =IF(H6-I6+J6-K6<0,H6-I6+J6-K6,0)*-1 -> 1130
A7: =IF((A6)<>"م",(A6)+1,1) -> 3 | B7: 2 | C7: مصطفى محمد سعد | D7: 2022-07-05 | E7: =IFERROR(VLOOKUP(C7,[1]credit!D:N,10,FALSE),0) -> 120 | F7: =IFERROR(VLOOKUP(C7,[1]credit!D:N,3,FALSE),0) -> test1 | G7: =IFERROR(VLOOKUP(C7,[1]credit!D:N,2,FALSE),0) -> احمد محمد سعد | H7: =IF(SUMIFS(Accmove!H:H,Accmove!B:B,B7,Accmove!T:T,"<"&L$1)-SUMIFS(Accmove!I:I,Accmove!B:B,B7,Accmove!T:T,"<"&L$1)>0,SUMIFS(Accmove!H:H,Accmove!B:B,B7,Accmove!T:T,"<"&L$1)-SUMIFS(Accmove!I:I,Accmove!B:B,B7,Accmove!T:T,"<"&L$1),0) -> 1080 | I7: =IF(SUMIFS(Accmove!H:H,Accmove!B:B,B7,Accmove!T:T,"<"&L$1)-SUMIFS(Accmove!I:I,Accmove!B:B,B7,Accmove!T:T,"<"&L$1)<0,SUMIFS(Accmove!H:H,Accmove!B:B,B7,Accmove!T:T,"<"&L$1)-SUMIFS(Accmove!I:I,Accmove!B:B,B7,Accmove!T:T,"<"&L$1),0)*-1 -> 0 | J7: =IF(SUMIFS(Accmove!H:H,Accmove!B:B,B7,Accmove!Q:Q,J$1)-SUMIFS(Accmove!I:I,Accmove!B:B,B7,Accmove!Q:Q,J$1)>0,SUMIFS(Accmove!H:H,Accmove!B:B,B7,Accmove!Q:Q,J$1)-SUMIFS(Accmove!I:I,Accmove!B:B,B7,Accmove!Q:Q,J$1),0) -> 0 | K7: =IF(SUMIFS(Accmove!H:H,Accmove!B:B,B7,Accmove!Q:Q,J$1)-SUMIFS(Accmove!I:I,Accmove!B:B,B7,Accmove!Q:Q,J$1)<0,SUMIFS(Accmove!H:H,Accmove!B:B,B7,Accmove!Q:Q,J$1)-SUMIFS(Accmove!I:I,Accmove!B:B,B7,Accmove!Q:Q,J$1),0)*-1 -> 670 | L7: =IF(H7-I7+J7-K7>0,H7-I7+J7-K7,0) -> 410 | M7: =IF(H7-I7+J7-K7<0,H7-I7+J7-K7,0)*-1 -> 0
A8: =IF((A7)<>"م",(A7)+1,1) -> 4 | B8: 1 | C8: ح/صندوق الاقساط | D8: 2022-07-05 | E8: =IFERROR(VLOOKUP(C8,[1]credit!D:N,10,FALSE),0) -> 0 | F8: =IFERROR(VLOOKUP(C8,[1]credit!D:N,3,FALSE),0) -> 0 | G8: =IFERROR(VLOOKUP(C8,[1]credit!D:N,2,FALSE),0) -> 0 | H8: =IF(SUMIFS(Accmove!H:H,Accmove!B:B,B8,Accmove!T:T,"<"&L$1)-SUMIFS(Accmove!I:I,Accmove!B:B,B8,Accmove!T:T,"<"&L$1)>0,SUMIFS(Accmove!H:H,Accmove!B:B,B8,Accmove!T:T,"<"&L$1)-SUMIFS(Accmove!I:I,Accmove!B:B,B8,Accmove!T:T,"<"&L$1),0) -> 0 | I8: =IF(SUMIFS(Accmove!H:H,Accmove!B:B,B8,Accmove!T:T,"<"&L$1)-SUMIFS(Accmove!I:I,Accmove!B:B,B8,Accmove!T:T,"<"&L$1)<0,SUMIFS(Accmove!H:H,Accmove!B:B,B8,Accmove!T:T,"<"&L$1)-SUMIFS(Accmove!I:I,Accmove!B:B,B8,Accmove!T:T,"<"&L$1),0)*-1 -> 1080 | J8: =IF(SUMIFS(Accmove!H:H,Accmove!B:B,B8,Accmove!Q:Q,J$1)-SUMIFS(Accmove!I:I,Accmove!B:B,B8,Accmove!Q:Q,J$1)>0,SUMIFS(Accmove!H:H,Accmove!B:B,B8,Accmove!Q:Q,J$1)-SUMIFS(Accmove!I:I,Accmove!B:B,B8,Accmove!Q:Q,J$1),0) -> 0 | K8: =IF(SUMIFS(Accmove!H:H,Accmove!B:B,B8,Accmove!Q:Q,J$1)-SUMIFS(Accmove!I:I,Accmove!B:B,B8,Accmove!Q:Q,J$1)<0,SUMIFS(Accmove!H:H,Accmove!B:B,B8,Accmove!Q:Q,J$1)-SUMIFS(Accmove!I:I,Accmove!B:B,B8,Accmove!Q:Q,J$1),0)*-1 -> 50 | L8: =IF(H8-I8+J8-K8>0,H8-I8+J8-K8,0) -> 0 | M8: =IF(H8-I8+J8-K8<0,H8-I8+J8-K8,0)*-1 -> 1130
A9: =IF((A8)<>"م",(A8)+1,1) -> 5 | B9: 2 | C9: مصطفى محمد سعد | D9: 2022-07-05 | E9: =IFERROR(VLOOKUP(C9,[1]credit!D:N,10,FALSE),0) -> 120 | F9: =IFERROR(VLOOKUP(C9,[1]credit!D:N,3,FALSE),0) -> test1 | G9: =IFERROR(VLOOKUP(C9,[1]credit!D:N,2,FALSE),0) -> احمد محمد سعد | H9: =IF(SUMIFS(Accmove!H:H,Accmove!B:B,B9,Accmove!T:T,"<"&L$1)-SUMIFS(Accmove!I:I,Accmove!B:B,B9,Accmove!T:T,"<"&L$1)>0,SUMIFS(Accmove!H:H,Accmove!B:B,B9,Accmove!T:T,"<"&L$1)-SUMIFS(Accmove!I:I,Accmove!B:B,B9,Accmove!T:T,"<"&L$1),0) -> 1080 | I9: =IF(SUMIFS(Accmove!H:H,Accmove!B:B,B9,Accmove!T:T,"<"&L$1)-SUMIFS(Accmove!I:I,Accmove!B:B,B9,Accmove!T:T,"<"&L$1)<0,SUMIFS(Accmove!H:H,Accmove!B:B,B9,Accmove!T:T,"<"&L$1)-SUMIFS(Accmove!I:I,Accmove!B:B,B9,Accmove!T:T,"<"&L$1),0)*-1 -> 0 | J9: =IF(SUMIFS(Accmove!H:H,Accmove!B:B,B9,Accmove!Q:Q,J$1)-SUMIFS(Accmove!I:I,Accmove!B:B,B9,Accmove!Q:Q,J$1)>0,SUMIFS(Accmove!H:H,Accmove!B:B,B9,Accmove!Q:Q,J$1)-SUMIFS(Accmove!I:I,Accmove!B:B,B9,Accmove!Q:Q,J$1),0) -> 0 | K9: =IF(SUMIFS(Accmove!H:H,Accmove!B:B,B9,Accmove!Q:Q,J$1)-SUMIFS(Accmove!I:I,Accmove!B:B,B9,Accmove!Q:Q,J$1)<0,SUMIFS(Accmove!H:H,Accmove!B:B,B9,Accmove!Q:Q,J$1)-SUMIFS(Accmove!I:I,Accmove!B:B,B9,Accmove!Q:Q,J$1),0)*-1 -> 670 | L9: =IF(H9-I9+J9-K9>0,H9-I9+J9-K9,0) -> 410 | M9: =IF(H9-I9+J9-K9<0,H9-I9+J9-K9,0)*-1 -> 0
A10: =IF((A9)<>"م",(A9)+1,1) -> 6 | B10: 1 | C10: ح/صندوق الاقساط | D10: 2022-07-05 | E10: =IFERROR(VLOOKUP(C10,[1]credit!D:N,10,FALSE),0) -> 0 | F10: =IFERROR(VLOOKUP(C10,[1]credit!D:N,3,FALSE),0) -> 0 | G10: =IFERROR(VLOOKUP(C10,[1]credit!D:N,2,FALSE),0) -> 0 | H10: =IF(SUMIFS(Accmove!H:H,Accmove!B:B,B10,Accmove!T:T,"<"&L$1)-SUMIFS(Accmove!I:I,Accmove!B:B,B10,Accmove!T:T,"<"&L$1)>0,SUMIFS(Accmove!H:H,Accmove!B:B,B10,Accmove!T:T,"<"&L$1)-SUMIFS(Accmove!I:I,Accmove!B:B,B10,Accmove!T:T,"<"&L$1),0) -> 0 | I10: =IF(SUMIFS(Accmove!H:H,Accmove!B:B,B10,Accmove!T:T,"<"&L$1)-SUMIFS(Accmove!I:I,Accmove!B:B,B10,Accmove!T:T,"<"&L$1)<0,SUMIFS(Accmove!H:H,Accmove!B:B,B10,Accmove!T:T,"<"&L$1)-SUMIFS(Accmove!I:I,Accmove!B:B,B10,Accmove!T:T,"<"&L$1),0)*-1 -> 1080 | J10: =IF(SUMIFS(Accmove!H:H,Accmove!B:B,B10,Accmove!Q:Q,J$1)-SUMIFS(Accmove!I:I,Accmove!B:B,B10,Accmove!Q:Q,J$1)>0,SUMIFS(Accmove!H:H,Accmove!B:B,B10,Accmove!Q:Q,J$1)-SUMIFS(Accmove!I:I,Accmove!B:B,B10,Accmove!Q:Q,J$1),0) -> 0 | K10: =IF(SUMIFS(Accmove!H:H,Accmove!B:B,B10,Accmove!Q:Q,J$1)-SUMIFS(Accmove!I:I,Accmove!B:B,B10,Accmove!Q:Q,J$1)<0,SUMIFS(Accmove!H:H,Accmove!B:B,B10,Accmove!Q:Q,J$1)-SUMIFS(Accmove!I:I,Accmove!B:B,B10,Accmove!Q:Q,J$1),0)*-1 -> 50 | L10: =IF(H10-I10+J10-K10>0,H10-I10+J10-K10,0) -> 0 | M10: =IF(H10-I10+J10-K10<0,H10-I10+J10-K10,0)*-1 -> 1130
A11: =IF((A10)<>"م",(A10)+1,1) -> 7 | B11: 2 | C11: مصطفى محمد سعد | D11: 2022-07-05 | E11: =IFERROR(VLOOKUP(C11,[1]credit!D:N,10,FALSE),0) -> 120 | F11: =IFERROR(VLOOKUP(C11,[1]credit!D:N,3,FALSE),0) -> test1 | G11: =IFERROR(VLOOKUP(C11,[1]credit!D:N,2,FALSE),0) -> احمد محمد سعد | H11: =IF(SUMIFS(Accmove!H:H,Accmove!B:B,B11,Accmove!T:T,"<"&L$1)-SUMIFS(Accmove!I:I,Accmove!B:B,B11,Accmove!T:T,"<"&L$1)>0,SUMIFS(Accmove!H:H,Accmove!B:B,B11,Accmove!T:T,"<"&L$1)-SUMIFS(Accmove!I:I,Accmove!B:B,B11,Accmove!T:T,"<"&L$1),0) -> 1080 | I11: =IF(SUMIFS(Accmove!H:H,Accmove!B:B,B11,Accmove!T:T,"<"&L$1)-SUMIFS(Accmove!I:I,Accmove!B:B,B11,Accmove!T:T,"<"&L$1)<0,SUMIFS(Accmove!H:H,Accmove!B:B,B11,Accmove!T:T,"<"&L$1)-SUMIFS(Accmove!I:I,Accmove!B:B,B11,Accmove!T:T,"<"&L$1),0)*-1 -> 0 | J11: =IF(SUMIFS(Accmove!H:H,Accmove!B:B,B11,Accmove!Q:Q,J$1)-SUMIFS(Accmove!I:I,Accmove!B:B,B11,Accmove!Q:Q,J$1)>0,SUMIFS(Accmove!H:H,Accmove!B:B,B11,Accmove!Q:Q,J$1)-SUMIFS(Accmove!I:I,Accmove!B:B,B11,Accmove!Q:Q,J$1),0) -> 0 | K11: =IF(SUMIFS(Accmove!H:H,Accmove!B:B,B11,Accmove!Q:Q,J$1)-SUMIFS(Accmove!I:I,Accmove!B:B,B11,Accmove!Q:Q,J$1)<0,SUMIFS(Accmove!H:H,Accmove!B:B,B11,Accmove!Q:Q,J$1)-SUMIFS(Accmove!I:I,Accmove!B:B,B11,Accmove!Q:Q,J$1),0)*-1 -> 670 | L11: =IF(H11-I11+J11-K11>0,H11-I11+J11-K11,0) -> 410 | M11: =IF(H11-I11+J11-K11<0,H11-I11+J11-K11,0)*-1 -> 0
A12: =IF((A11)<>"م",(A11)+1,1) -> 8 | B12: 1 | C12: ح/صندوق الاقساط | D12: 2022-07-05 | E12: =IFERROR(VLOOKUP(C12,[1]credit!D:N,10,FALSE),0) -> 0 | F12: =IFERROR(VLOOKUP(C12,[1]credit!D:N,3,FALSE),0) -> 0 | G12: =IFERROR(VLOOKUP(C12,[1]credit!D:N,2,FALSE),0) -> 0 | H12: =IF(SUMIFS(Accmove!H:H,Accmove!B:B,B12,Accmove!T:T,"<"&L$1)-SUMIFS(Accmove!I:I,Accmove!B:B,B12,Accmove!T:T,"<"&L$1)>0,SUMIFS(Accmove!H:H,Accmove!B:B,B12,Accmove!T:T,"<"&L$1)-SUMIFS(Accmove!I:I,Accmove!B:B,B12,Accmove!T:T,"<"&L$1),0) -> 0 | I12: =IF(SUMIFS(Accmove!H:H,Accmove!B:B,B12,Accmove!T:T,"<"&L$1)-SUMIFS(Accmove!I:I,Accmove!B:B,B12,Accmove!T:T,"<"&L$1)<0,SUMIFS(Accmove!H:H,Accmove!B:B,B12,Accmove!T:T,"<"&L$1)-SUMIFS(Accmove!I:I,Accmove!B:B,B12,Accmove!T:T,"<"&L$1),0)*-1 -> 1080 | J12: =IF(SUMIFS(Accmove!H:H,Accmove!B:B,B12,Accmove!Q:Q,J$1)-SUMIFS(Accmove!I:I,Accmove!B:B,B12,Accmove!Q:Q,J$1)>0,SUMIFS(Accmove!H:H,Accmove!B:B,B12,Accmove!Q:Q,J$1)-SUMIFS(Accmove!I:I,Accmove!B:B,B12,Accmove!Q:Q,J$1),0) -> 0 | K12: =IF(SUMIFS(Accmove!H:H,Accmove!B:B,B12,Accmove!Q:Q,J$1)-SUMIFS(Accmove!I:I,Accmove!B:B,B12,Accmove!Q:Q,J$1)<0,SUMIFS(Accmove!H:H,Accmove!B:B,B12,Accmove!Q:Q,J$1)-SUMIFS(Accmove!I:I,Accmove!B:B,B12,Accmove!Q:Q,J$1),0)*-1 -> 50 | L12: =IF(H12-I12+J12-K12>0,H12-I12+J12-K12,0) -> 0 | M12: =IF(H12-I12+J12-K12<0,H12-I12+J12-K12,0)*-1 -> 1130
A13: =IF((A12)<>"م",(A12)+1,1) -> 9 | B13: 24 | C13: test1 | D13: 2022-07-05 | E13: =IFERROR(VLOOKUP(C13,[1]credit!D:N,10,FALSE),0) -> 0 | F13: =IFERROR(VLOOKUP(C13,[1]credit!D:N,3,FALSE),0) -> 0 | G13: =IFERROR(VLOOKUP(C13,[1]credit!D:N,2,FALSE),0) -> 0 | H13: =IF(SUMIFS(Accmove!H:H,Accmove!B:B,B13,Accmove!T:T,"<"&L$1)-SUMIFS(Accmove!I:I,Accmove!B:B,B13,Accmove!T:T,"<"&L$1)>0,SUMIFS(Accmove!H:H,Accmove!B:B,B13,Accmove!T:T,"<"&L$1)-SUMIFS(Accmove!I:I,Accmove!B:B,B13,Accmove!T:T,"<"&L$1),0) -> 0 | I13: =IF(SUMIFS(Accmove!H:H,Accmove!B:B,B13,Accmove!T:T,"<"&L$1)-SUMIFS(Accmove!I:I,Accmove!B:B,B13,Accmove!T:T,"<"&L$1)<0,SUMIFS(Accmove!H:H,Accmove!B:B,B13,Accmove!T:T,"<"&L$1)-SUMIFS(Accmove!I:I,Accmove!B:B,B13,Accmove!T:T,"<"&L$1),0)*-1 -> 0 | J13: =IF(SUMIFS(Accmove!H:H,Accmove!B:B,B13,Accmove!Q:Q,J$1)-SUMIFS(Accmove!I:I,Accmove!B:B,B13,Accmove!Q:Q,J$1)>0,SUMIFS(Accmove!H:H,Accmove!B:B,B13,Accmove!Q:Q,J$1)-SUMIFS(Accmove!I:I,Accmove!B:B,B13,Accmove!Q:Q,J$1),0) -> 720 | K13: =IF(SUMIFS(Accmove!H:H,Accmove!B:B,B13,Accmove!Q:Q,J$1)-SUMIFS(Accmove!I:I,Accmove!B:B,B13,Accmove!Q:Q,J$1)<0,SUMIFS(Accmove!H:H,Accmove!B:B,B13,Accmove!Q:Q,J$1)-SUMIFS(Accmove!I:I,Accmove!B:B,B13,Accmove!Q:Q,J$1),0)*-1 -> 0 | L13: =IF(H13-I13+J13-K13>0,H13-I13+J13-K13,0) -> 720 | M13: =IF(H13-I13+J13-K13<0,H13-I13+J13-K13,0)*-1 -> 0
A14: =IF((A13)<>"م",(A13)+1,1) -> 10 | B14: 1 | C14: ح/صندوق الاقساط | D14: 2022-07-05 | E14: =IFERROR(VLOOKUP(C14,[1]credit!D:N,10,FALSE),0) -> 0 | F14: =IFERROR(VLOOKUP(C14,[1]credit!D:N,3,FALSE),0) -> 0 | G14: =IFERROR(VLOOKUP(C14,[1]credit!D:N,2,FALSE),0) -> 0 | H14: =IF(SUMIFS(Accmove!H:H,Accmove!B:B,B14,Accmove!T:T,"<"&L$1)-SUMIFS(Accmove!I:I,Accmove!B:B,B14,Accmove!T:T,"<"&L$1)>0,SUMIFS(Accmove!H:H,Accmove!B:B,B14,Accmove!T:T,"<"&L$1)-SUMIFS(Accmove!I:I,Accmove!B:B,B14,Accmove!T:T,"<"&L$1),0) -> 0 | I14: =IF(SUMIFS(Accmove!H:H,Accmove!B:B,B14,Accmove!T:T,"<"&L$1)-SUMIFS(Accmove!I:I,Accmove!B:B,B14,Accmove!T:T,"<"&L$1)<0,SUMIFS(Accmove!H:H,Accmove!B:B,B14,Accmove!T:T,"<"&L$1)-SUMIFS(Accmove!I:I,Accmove!B:B,B14,Accmove!T:T,"<"&L$1),0)*-1 -> 1080 | J14: =IF(SUMIFS(Accmove!H:H,Accmove!B:B,B14,Accmove!Q:Q,J$1)-SUMIFS(Accmove!I:I,Accmove!B:B,B14,Accmove!Q:Q,J$1)>0,SUMIFS(Accmove!H:H,Accmove!B:B,B14,Accmove!Q:Q,J$1)-SUMIFS(Accmove!I:I,Accmove!B:B,B14,Accmove!Q:Q,J$1),0) -> 0 | K14: =IF(SUMIFS(Accmove!H:H,Accmove!B:B,B14,Accmove!Q:Q,J$1)-SUMIFS(Accmove!I:I,Accmove!B:B,B14,Accmove!Q:Q,J$1)<0,SUMIFS(Accmove!H:H,Accmove!B:B,B14,Accmove!Q:Q,J$1)-SUMIFS(Accmove!I:I,Accmove!B:B,B14,Accmove!Q:Q,J$1),0)*-1 -> 50 | L14: =IF(H14-I14+J14-K14>0,H14-I14+J14-K14,0) -> 0 | M14: =IF(H14-I14+J14-K14<0,H14-I14+J14-K14,0)*-1 -> 1130
A15: =IF((A14)<>"م",(A14)+1,1) -> 11 | B15: 25 | C15: test me | D15: 2022-07-18 | E15: =IFERROR(VLOOKUP(C15,[1]credit!D:N,10,FALSE),0) -> 2 | F15: =IFERROR(VLOOKUP(C15,[1]credit!D:N,3,FALSE),0) -> test1 | G15: =IFERROR(VLOOKUP(C15,[1]credit!D:N,2,FALSE),0) -> test me | H15: =IF(SUMIFS(Accmove!H:H,Accmove!B:B,B15,Accmove!T:T,"<"&L$1)-SUMIFS(Accmove!I:I,Accmove!B:B,B15,Accmove!T:T,"<"&L$1)>0,SUMIFS(Accmove!H:H,Accmove!B:B,B15,Accmove!T:T,"<"&L$1)-SUMIFS(Accmove!I:I,Accmove!B:B,B15,Accmove!T:T,"<"&L$1),0) -> 0 | I15: =IF(SUMIFS(Accmove!H:H,Accmove!B:B,B15,Accmove!T:T,"<"&L$1)-SUMIFS(Accmove!I:I,Accmove!B:B,B15,Accmove!T:T,"<"&L$1)<0,SUMIFS(Accmove!H:H,Accmove!B:B,B15,Accmove!T:T,"<"&L$1)-SUMIFS(Accmove!I:I,Accmove!B:B,B15,Accmove!T:T,"<"&L$1),0)*-1 -> 0 | J15: =IF(SUMIFS(Accmove!H:H,Accmove!B:B,B15,Accmove!Q:Q,J$1)-SUMIFS(Accmove!I:I,Accmove!B:B,B15,Accmove!Q:Q,J$1)>0,SUMIFS(Accmove!H:H,Accmove!B:B,B15,Accmove!Q:Q,J$1)-SUMIFS(Accmove!I:I,Accmove!B:B,B15,Accmove!Q:Q,J$1),0) -> 0 | K15: =IF(SUMIFS(Accmove!H:H,Accmove!B:B,B15,Accmove!Q:Q,J$1)-SUMIFS(Accmove!I:I,Accmove!B:B,B15,Accmove!Q:Q,J$1)<0,SUMIFS(Accmove!H:H,Accmove!B:B,B15,Accmove!Q:Q,J$1)-SUMIFS(Accmove!I:I,Accmove!B:B,B15,Accmove!Q:Q,J$1),0)*-1 -> 0 | L15: =IF(H15-I15+J15-K15>0,H15-I15+J15-K15,0) -> 0 | M15: =IF(H15-I15+J15-K15<0,H15-I15+J15-K15,0)*-1 -> 0
A16: =IF((A15)<>"م",(A15)+1,1) -> 12 | B16: 24 | C16: test me | D16: 2022-07-18 | E16: =IFERROR(VLOOKUP(C16,[1]credit!D:N,10,FALSE),0) -> 2 | F16: =IFERROR(VLOOKUP(C16,[1]credit!D:N,3,FALSE),0) -> test1 | G16: =IFERROR(VLOOKUP(C16,[1]credit!D:N,2,FALSE),0) -> test me | H16: =IF(SUMIFS(Accmove!H:H,Accmove!B:B,B16,Accmove!T:T,"<"&L$1)-SUMIFS(Accmove!I:I,Accmove!B:B,B16,Accmove!T:T,"<"&L$1)>0,SUMIFS(Accmove!H:H,Accmove!B:B,B16,Accmove!T:T,"<"&L$1)-SUMIFS(Accmove!I:I,Accmove!B:B,B16,Accmove!T:T,"<"&L$1),0) -> 0 | I16: =IF(SUMIFS(Accmove!H:H,Accmove!B:B,B16,Accmove!T:T,"<"&L$1)-SUMIFS(Accmove!I:I,Accmove!B:B,B16,Accmove!T:T,"<"&L$1)<0,SUMIFS(Accmove!H:H,Accmove!B:B,B16,Accmove!T:T,"<"&L$1)-SUMIFS(Accmove!I:I,Accmove!B:B,B16,Accmove!T:T,"<"&L$1),0)*-1 -> 0 | J16: =IF(SUMIFS(Accmove!H:H,Accmove!B:B,B16,Accmove!Q:Q,J$1)-SUMIFS(Accmove!I:I,Accmove!B:B,B16,Accmove!Q:Q,J$1)>0,SUMIFS(Accmove!H:H,Accmove!B:B,B16,Accmove!Q:Q,J$1)-SUMIFS(Accmove!I:I,Accmove!B:B,B16,Accmove!Q:Q,J$1),0) -> 720 | K16: =IF(SUMIFS(Accmove!H:H,Accmove!B:B,B16,Accmove!Q:Q,J$1)-SUMIFS(Accmove!I:I,Accmove!B:B,B16,Accmove!Q:Q,J$1)<0,SUMIFS(Accmove!H:H,Accmove!B:B,B16,Accmove!Q:Q,J$1)-SUMIFS(Accmove!I:I,Accmove!B:B,B16,Accmove!Q:Q,J$1),0)*-1 -> 0 | L16: =IF(H16-I16+J16-K16>0,H16-I16+J16-K16,0) -> 720 | M16: =IF(H16-I16+J16-K16<0,H16-I16+J16-K16,0)*-1 -> 0
A17: =IF((A16)<>"م",(A16)+1,1) -> 13 | B17: 2 | C17: test1 | D17: 2022-07-18 | E17: =IFERROR(VLOOKUP(C17,[1]credit!D:N,10,FALSE),0) -> 0 | F17: =IFERROR(VLOOKUP(C17,[1]credit!D:N,3,FALSE),0) -> 0 | G17: =IFERROR(VLOOKUP(C17,[1]credit!D:N,2,FALSE),0) -> 0 | H17: =IF(SUMIFS(Accmove!H:H,Accmove!B:B,B17,Accmove!T:T,"<"&L$1)-SUMIFS(Accmove!I:I,Accmove!B:B,B17,Accmove!T:T,"<"&L$1)>0,SUMIFS(Accmove!H:H,Accmove!B:B,B17,Accmove!T:T,"<"&L$1)-SUMIFS(Accmove!I:I,Accmove!B:B,B17,Accmove!T:T,"<"&L$1),0) -> 1080 | I17: =IF(SUMIFS(Accmove!H:H,Accmove!B:B,B17,Accmove!T:T,"<"&L$1)-SUMIFS(Accmove!I:I,Accmove!B:B,B17,Accmove!T:T,"<"&L$1)<0,SUMIFS(Accmove!H:H,Accmove!B:B,B17,Accmove!T:T,"<"&L$1)-SUMIFS(Accmove!I:I,Accmove!B:B,B17,Accmove!T:T,"<"&L$1),0)*-1 -> 0 | J17: =IF(SUMIFS(Accmove!H:H,Accmove!B:B,B17,Accmove!Q:Q,J$1)-SUMIFS(Accmove!I:I,Accmove!B:B,B17,Accmove!Q:Q,J$1)>0,SUMIFS(Accmove!H:H,Accmove!B:B,B17,Accmove!Q:Q,J$1)-SUMIFS(Accmove!I:I,Accmove!B:B,B17,Accmove!Q:Q,J$1),0) -> 0 | K17: =IF(SUMIFS(Accmove!H:H,Accmove!B:B,B17,Accmove!Q:Q,J$1)-SUMIFS(Accmove!I:I,Accmove!B:B,B17,Accmove!Q:Q,J$1)<0,SUMIFS(Accmove!H:H,Accmove!B:B,B17,Accmove!Q:Q,J$1)-SUMIFS(Accmove!I:I,Accmove!B:B,B17,Accmove!Q:Q,J$1),0)*-1 -> 670 | L17: =IF(H17-I17+J17-K17>0,H17-I17+J17-K17,0) -> 410 | M17: =IF(H17-I17+J17-K17<0,H17-I17+J17-K17,0)*-1 -> 0
